bitfinex/quotes_SOLUSD_20241105
["timestamp","ask_amount","ask_price","bid_price","bid_amount"]
[1730780228121,18.28802638,160.17,160.12,33.90292638]
[1730780228321,18.28802638,160.17,160.13,5.71840245]
[1730780228532,18.28802638,160.17,160.12,33.90292638]
[1730780228743,18.28802638,160.17,160.13,5.71617454]
[1730780228933,18.28802638,160.17,160.12,25.32423987]
[1730780229140,18.28802638,160.17,160.13,5.71593217]
[1730780229441,18.28802638,160.17,160.13,3.54973872]
[1730780230741,18.28802638,160.17,160.12,33.90292638]
[1730780230942,18.28802638,160.17,160.13,5.71496807]
[1730780231121,18.28802638,160.17,160.13,3.54928986]
[1730780232263,12.04472638,160.17,160.13,3.54928986]
[1730780232424,12.04472638,160.17,160.12,33.90292638]
[1730780232625,12.04472638,160.17,160.13,5.71531536]
[1730780232825,12.04472638,160.17,160.12,33.90292638]
[1730780233027,12.04472638,160.17,160.13,5.71539977]
[1730780233248,12.04472638,160.17,160.12,33.90292638]
[1730780233545,12.04472638,160.17,160.13,5.71512177]
[1730780233846,12.04472638,160.17,160.13,3.54951671]
[1730780234427,18.28772638,160.18,160.13,6.2448]
[1730780234734,12.04472638,160.17,160.13,6.2448]
[1730780234918,12.04472638,160.17,160.12,27.65792638]
[1730780235123,12.04472638,160.17,160.13,5.71560242]
[1730780235332,12.04472638,160.16,160.14,2.16583603]
[1730780235535,12.04472638,160.15,160.13,5.71621316]
[1730780235741,12.04472638,160.16,160.13,3.55015031]
[1730780236073,18.28772638,160.18,160.13,3.5501896]
[1730780236242,18.28772638,160.18,160.13,3.55010438]
[1730780236442,18.28772638,160.18,160.13,3.55030017]
[1730780237172,12.04472638,160.17,160.13,3.55030017]
[1730780237471,6.243,160.18,160.13,37.45192655]
[1730780237764,18.28772638,160.18,160.14,2.1659369]
[1730780237945,18.28772638,160.18,160.13,21.8569]
[1730780238146,12.04472638,160.17,160.14,2.16602235]
[1730780238349,12.04472638,160.17,160.13,5.71638212]
[1730780238547,12.04472638,160.15,160.12,3.55007557]
[1730780238761,12.04472638,160.16,160.13,5.71639581]
[1730780238947,12.04472638,160.16,160.12,3.55007557]
[1730780239143,12.04472638,160.16,160.13,5.71639038]
[1730780239370,12.04472638,160.16,160.12,3.55032149]
[1730780239556,12.04472638,160.16,160.13,5.71674106]
[1730780239781,18.28772638,160.18,160.13,12.04472638]
[1730780239952,12.04472638,160.17,160.14,2.16674339]
[1730780240152,12.04472638,160.17,160.13,5.71720741]
[1730780240355,6.243,160.18,160.14,5.71674642]
[1730780240356,12.04472638,160.18,160.14,5.71674642]
[1730780240558,12.04472638,160.18,160.14,3.55013206]
[1730780240768,12.04472638,160.18,160.13,15.51137957]
[1730780240958,12.04472638,160.18,160.14,5.71582505]
[1730780241158,12.04472638,160.18,160.13,12.04472638]
[1730780241359,18.28762638,160.18,160.14,5.71446092]
[1730780241551,12.04472638,160.17,160.14,3.54885261]
[1730780241753,12.04472638,160.16,160.13,5.71465615]
[1730780241966,12.04472638,160.17,160.14,2.16580354]
[1730780242273,12.04472638,160.17,160.13,3.54908923]
[1730780242468,12.04472638,160.17,160.12,9.71195319]
[1730780242668,12.04472638,160.17,160.13,5.71541372]
[1730780242878,12.04472638,160.18,160.14,5.71541372]
[1730780243169,12.04472638,160.18,160.13,12.04472638]
[1730780243369,12.04472638,160.18,160.14,3.54905837]
[1730780244285,12.04472638,160.16,160.14,3.54905837]
[1730780244470,0.3096875,160.19,160.12,21.8584]
[1730780244471,12.04472638,160.15,160.12,21.8584]
[1730780244774,12.04472638,160.16,160.13,5.71536547]
[1730780244956,12.04472638,160.16,160.13,3.54943464]
[1730780245461,12.04472638,160.16,160.12,21.8584]
[1730780245658,12.04472638,160.17,160.13,5.71470433]
[1730780245976,12.04472638,160.16,160.12,25.32427906]
[1730780246189,12.04472638,160.16,160.13,5.71446782]
[1730780246477,12.04472638,160.16,160.12,25.32427906]
[1730780246774,12.04472638,160.16,160.13,5.71508913]
[1730780246981,12.04472638,160.16,160.12,25.32427906]
[1730780247273,12.04472638,160.13,160.09,6.2461]
[1730780247477,12.04472638,160.13,160.1,2.16606479]
[1730780247666,12.04472638,160.13,160.1,5.71616347]
[1730780247973,12.04472638,160.13,160.11,5.71616347]
[1730780248176,12.04472638,160.13,160.09,25.32839353]
[1730780248374,12.04472638,160.14,160.1,5.71612513]
[1730780248553,12.04472638,160.14,160.11,5.71612513]
[1730780248750,12.04472638,160.13,160.11,3.55004441]
[1730780248953,12.04472638,160.13,160.1,3.55004441]
[1730780249175,6.36839,160.18,160.11,5.71593514]
[1730780249176,12.04472638,160.14,160.11,5.71593514]
[1730780249376,12.04472638,160.14,160.1,7.01613794]
[1730780249579,12.04472638,160.14,160.11,5.71587199]
[1730780249875,12.04472638,160.12,160.1,3.5505859]
[1730780250077,12.04472638,160.11,160.1,2.16644041]
[1730780250266,12.04472638,160.11,160.09,3.55099166]
[1730780250581,12.04472638,160.1,160.07,5.71764844]
[1730780250762,12.04472638,160.1,160.08,3.55112209]
[1730780251074,12.04472638,160.1,160.07,3.55121534]
[1730780251249,12.04472638,160.1,160.08,2.16656008]
[1730780251453,12.04472638,160.1,160.07,5.71681201]
[1730780251649,12.04472638,160.1,160.08,2.16656008]
[1730780251854,12.04472638,160.1,160.07,11.96401201]
[1730780252054,12.04472638,160.1,160.07,6.2472]
[1730780252278,12.04472638,160.11,160.07,6.2472]
[1730780252759,12.04472638,160.08,160.04,6.2483]
[1730780252969,12.04472638,160.07,160.04,11.96586321]
[1730780253361,12.04472638,160.07,160.04,6.2483]
[1730780253755,12.04472638,160.07,160.03,21.8706]
[1730780254166,12.04472638,160.06,160.03,21.8706]
[1730780255267,12.04472638,160.04,159.99,0.93738506]
[1730780255467,12.04472638,160.01,159.99,0.93738506]
[1730780256675,12.04472638,160.02,159.99,0.93738506]
[1730780256880,12.04472638,160.02,159.99,7.18748506]
[1730780257267,12.04472638,160.03,159.99,7.18748506]
[1730780257866,12.04472638,160.01,159.96,27.67312638]
[1730780258063,12.04472638,160.0,159.96,15.6284]
[1730780258269,12.04472638,160.01,159.96,27.67312638]
[1730780259267,12.04472638,160.01,159.96,15.6284]
[1730780259782,12.04472638,160.0,159.96,15.6284]
[1730780259988,6.2484,160.04,159.96,27.67312638]
[1730780259989,12.04472638,160.01,159.96,27.67312638]
[1730780260366,12.04472638,160.02,159.97,12.04472638]
[1730780261368,12.04472638,160.02,159.98,21.8776]
[1730780261581,12.04472638,160.03,159.98,33.92232638]
[1730780261769,91.5005,160.09,160.02,12.04472638]
[1730780261770,12.04472638,160.07,160.02,12.04472638]
[1730780261966,12.04472638,160.09,160.04,12.04472638]
[1730780262376,12.04472638,160.11,160.06,12.04472638]
[1730780262883,12.04472638,160.08,160.02,12.04472638]
[1730780263089,12.04472638,160.07,160.02,12.04472638]
[1730780263591,12.04472638,160.07,160.03,21.8708]
[1730780265487,12.04472638,160.08,160.03,21.8708]
[1730780265871,70.0,160.12,160.05,12.04472638]
[1730780265872,12.04472638,160.1,160.05,12.04472638]
[1730780267066,12.04472638,160.1,160.06,6.2476]
[1730780267981,12.04472638,160.09,160.04,12.04472638]
[1730780268173,12.04472638,160.1,160.04,12.04472638]
[1730780268393,12.04472638,160.1,160.05,12.04472638]
[1730780269097,12.04472638,160.1,160.06,6.2476]
[1730780270394,12.04472638,160.1,160.06,21.8667]
[1730780271409,12.04472638,160.11,160.06,33.91142638]
[1730780271583,12.04472638,160.12,160.06,65.14962638]
[1730780271898,12.04472638,160.12,160.07,12.04472638]
[1730780272884,12.04472638,160.12,160.06,65.14962638]
[1730780274390,12.04472638,160.12,160.07,12.04472638]
[1730780276184,12.04472638,160.12,160.06,43.28292638]
[1730780276519,12.04472638,160.12,160.07,12.04472638]
[1730780277712,12.04472638,160.12,160.06,65.14962638]
[1730780278630,48.17890552,160.16,160.08,33.90862638]
[1730780278631,12.04472638,160.14,160.08,33.90862638]
[1730780279794,12.04472638,160.15,160.1,12.04472638]
[1730780279989,12.04472638,160.16,160.1,12.04472638]
[1730780280390,12.04472638,160.15,160.1,12.04472638]
[1730780281297,12.04472638,160.15,160.09,12.04472638]
[1730780281994,12.04472638,160.15,160.1,21.8612]
[1730780282194,12.04472638,160.14,160.1,21.8612]
[1730780284833,12.04472638,160.13,160.07,12.04472638]
[1730780285025,15.8543,160.17,160.07,12.04472638]
[1730780285026,12.04472638,160.12,160.07,12.04472638]
[1730780285198,12.04472638,160.13,160.08,12.04472638]
[1730780286116,12.04472638,160.13,160.09,21.8626]
[1730780287217,12.04472638,160.12,160.09,21.8626]
[1730780288097,12.04472638,160.12,160.09,15.6162]
[1730780289225,12.04472638,160.13,160.09,15.6162]
[1730780290201,12.04472638,160.12,160.09,15.6162]
[1730780290405,12.04472638,160.13,160.09,15.6162]
[1730780290826,12.04472638,160.12,160.09,15.6162]
[1730780291500,12.04472638,160.13,160.09,15.6162]
[1730780291814,12.04472638,160.12,160.09,15.6162]
[1730780294109,12.04472638,160.14,160.09,15.6162]
[1730780294312,12.04472638,160.14,160.09,27.66092638]
[1730780295227,12.04472638,160.14,160.09,33.90732638]
[1730780296400,12.04472638,160.15,160.1,12.04472638]
[1730780296614,12.04472638,160.16,160.11,12.04472638]
[1730780298117,12.35441388,160.19,160.13,12.04472638]
[1730780298429,0.3096875,160.19,160.16,12.04472638]
[1730780298804,0.3096875,160.19,160.15,12.04472638]
[1730780300100,0.3096875,160.19,160.16,21.853]
[1730780301225,0.3096875,160.19,160.14,12.04472638]
[1730780301735,0.3096875,160.19,160.15,12.04472638]
[1730780302236,0.3096875,160.19,160.16,12.04472638]
[1730780303001,0.3096875,160.19,160.16,21.853]
[1730780304808,0.3096875,160.19,160.16,12.04472638]
[1730780305008,0.3096875,160.19,160.15,12.04472638]
[1730780306138,0.3096875,160.19,160.16,21.853]
[1730780308726,0.3096875,160.19,160.15,12.04472638]
[1730780310119,12.35441388,160.19,160.14,12.17021638]
[1730780310715,12.35441388,160.19,160.15,21.8544]
[1730780313329,0.3096875,160.19,160.15,21.8544]
[1730780314021,12.35441388,160.19,160.15,21.8544]
[1730780315217,0.3096875,160.19,160.15,15.6103]
[1730780316819,0.3096875,160.19,160.15,21.8544]
[1730780317032,0.3096875,160.19,160.15,33.89912638]
[1730780317740,0.3096875,160.19,160.17,12.04472638]
[1730780318147,0.3096875,160.19,160.15,33.89912638]
[1730780320540,0.3096875,160.19,160.16,12.04472638]
[1730780321430,0.3096875,160.19,160.17,21.8517]
[1730780321953,0.3096875,160.19,160.18,12.04472638]
[1730780323348,0.3096875,160.19,160.18,6.2429]
[1730780325356,0.3096875,160.19,160.18,42.44098038]
[1730780325648,0.3096875,160.19,160.18,6.2429]
[1730780327932,0.3096875,160.19,160.18,18.28762638]
[1730780328450,0.3096875,160.19,160.18,6.2429]
[1730780328832,0.3096875,160.19,160.17,21.8517]
[1730780329153,12.04472638,160.18,160.15,6.2438]
[1730780329363,12.04472638,160.18,160.14,15.6111]
[1730780330237,12.04472638,160.16,160.14,15.6111]
[1730780330561,12.04472638,160.15,160.13,6.2449]
[1730780331336,12.04472638,160.15,160.11,21.8597]
[1730780332677,12.04472638,160.16,160.11,33.90442638]
[1730780333450,12.04472638,160.18,160.13,12.04472638]
[1730780334064,12.04472638,160.17,160.12,12.04472638]
[1730780334390,12.04472638,160.18,160.12,12.04472638]
[1730780334972,12.04472638,160.18,160.13,21.8572]
[1730780336071,12.04472638,160.17,160.13,21.8572]
[1730780336570,12.04472638,160.18,160.13,33.90192638]
[1730780337384,12.35441388,160.19,160.13,33.90192638]
[1730780339050,12.04472638,160.18,160.13,21.8572]
[1730780339779,12.04472638,160.18,160.13,33.90192638]
[1730780340075,12.04472638,160.18,160.13,15.6123]
[1730780340463,12.04472638,160.18,160.14,2.16757475]
[1730780341270,12.35441388,160.19,160.14,2.16757475]
[1730780341556,12.35441388,160.19,160.14,5.72213429]
[1730780342176,12.04472638,160.18,160.15,21.8544]
[1730780343682,12.35441388,160.19,160.15,15.6103]
[1730780345063,12.04472638,160.18,160.15,15.6103]
[1730780345483,12.35441388,160.19,160.15,15.6103]
[1730780346558,12.35441388,160.19,160.15,21.8544]
[1730780347862,12.35441388,160.19,160.13,12.04472638]
[1730780348063,12.35441388,160.19,160.14,5.72650328]
[1730780348270,12.35441388,160.19,160.15,2.16948833]
[1730780349078,12.35441388,160.19,160.14,3.5570349]
[1730780349277,12.35441388,160.19,160.15,2.16922672]
[1730780349656,12.35441388,160.19,160.15,8.41292672]
[1730780350061,0.3096875,160.19,160.15,21.854]
[1730780351384,0.3096875,160.19,160.16,2.1692255]
[1730780351586,0.3096875,160.19,160.17,33.89642638]
[1730780351794,0.3096875,160.19,160.18,12.04472638]
[1730780351966,0.3096875,160.19,160.18,2.16812179]
[1730780352263,0.3096875,160.19,160.18,2.16820658]
[1730780352469,0.3096875,160.19,160.18,5.72200329]
[1730780353071,0.3096875,160.19,160.18,11.96490329]
[1730780355568,0.3096875,160.19,160.18,17.76708926]
[1730780356679,0.3096875,160.19,160.18,24.00998926]
[1730780357773,0.3096875,160.19,160.18,20.45571284]
[1730780357976,0.3096875,160.19,160.18,8.41098646]
[1730780359494,0.3096875,160.19,160.18,2.16808646]
[1730780359791,0.3096875,160.19,160.18,8.41098646]
[1730780360894,0.3096875,160.19,160.18,20.45571284]
[1730780362177,0.3096875,160.19,160.18,8.41098646]
[1730780362688,0.3096875,160.19,160.18,6.2429]
[1730780363077,0.3096875,160.19,160.17,15.6084]
[1730780364173,0.3096875,160.19,160.17,27.65312638]
[1730780364473,0.3096875,160.19,160.17,33.89642638]
[1730780366385,0.3096875,160.19,160.18,42.46598038]
[1730780366592,0.3096875,160.19,160.18,51.64538968]
[1730780366898,0.3096875,160.19,160.18,51.54538968]
[1730780367877,0.3096875,160.19,160.18,57.78828968]
[1730780368298,0.3096875,160.19,160.18,57.88828968]
[1730780369901,0.3096875,160.19,160.18,57.88749847]
[1730780372087,0.3096875,160.19,160.18,54.33823348]
[1730780372293,0.3096875,160.19,160.18,57.8865879]
[1730780372701,0.3096875,160.19,160.18,57.7865879]
[1730780372893,0.3096875,160.19,160.18,51.6186879]
[1730780373092,0.3096875,160.19,160.18,48.15432066]
[1730780376400,0.3096875,160.19,160.18,48.02883066]
[1730780376613,0.3096875,160.19,160.18,48.15432066]
[1730780377623,0.3096875,160.19,160.18,48.14967189]
[1730780382816,27.72161388,160.27,160.18,48.14967189]
[1730780382817,0.3096875,160.27,160.19,24.253354]
[1730780382989,0.3096875,160.27,160.23,12.04472638]
[1730780384009,12.04472638,160.25,160.19,12.04472638]
[1730780384907,18.28522638,160.25,160.19,18.28702638]
[1730780385112,18.28522638,160.25,160.19,33.89342638]
[1730780385616,18.28522638,160.25,160.2,12.04472638]
[1730780386213,12.04472638,160.23,160.19,15.6064]
[1730780386609,12.04472638,160.23,160.17,18.28802638]
[1730780386807,12.04472638,160.22,160.17,18.28802638]
[1730780387014,12.04472638,160.2,160.16,2.1317292]
[1730780387311,12.04472638,160.2,160.15,0.93664114]
[1730780387513,12.04472638,160.2,160.15,19.22526752]
[1730780388090,70.02100552,160.24,160.15,7.18054114]
[1730780388421,12.04472638,160.16,160.1,12.04472638]
[1730780389012,12.04472638,160.14,160.09,15.6154]
[1730780389216,12.04472638,160.13,160.08,6.2468]
[1730780389529,6.2437,160.16,160.05,14.17792069]
[1730780389530,12.04472638,160.11,160.05,14.17792069]
[1730780389811,12.04472638,160.11,160.03,15.6594]
[1730780389812,12.04472638,160.1,160.03,15.622]
[1730780390025,12.04472638,160.08,160.03,15.622]
[1730780390199,12.04472638,160.07,160.01,33.91832638]
[1730780390403,12.04472638,160.06,160.01,21.8736]
[1730780390712,12.04472638,160.07,160.02,12.04472638]
[1730780390915,12.04472638,160.07,160.03,5.73192192]
[1730780391102,12.04472638,160.07,160.02,18.29372638]
[1730780391502,12.04472638,160.11,160.06,12.04472638]
[1730780391702,12.04472638,160.12,160.06,12.04472638]
[1730780392013,12.04472638,160.11,160.06,12.04472638]
[1730780392193,6.2449,160.13,160.02,21.872]
[1730780392194,12.04472638,160.13,160.08,12.04472638]
[1730780392595,12.04472638,160.12,160.07,12.04472638]
[1730780392801,12.04472638,160.13,160.07,12.04472638]
[1730780393210,12.04472638,160.12,160.07,18.29172638]
[1730780393718,6.301,160.15,160.11,12.04472638]
[1730780394018,18.34572638,160.15,160.1,12.04472638]
[1730780394725,6.301,160.15,160.11,12.04472638]
[1730780394892,18.34572638,160.15,160.1,12.04472638]
[1730780395098,6.301,160.15,160.1,12.04472638]
[1730780395314,6.301,160.15,160.11,21.8599]
[1730780396399,6.301,160.15,160.11,12.04472638]
[1730780397123,18.34572638,160.15,160.09,12.04472638]
[1730780397433,12.04472638,160.14,160.09,12.04472638]
[1730780397621,12.04472638,160.13,160.07,12.04472638]
[1730780397922,12.04472638,160.14,160.09,12.04472638]
[1730780398226,6.301,160.15,160.1,12.04472638]
[1730780398721,18.34572638,160.15,160.09,12.04472638]
[1730780399520,18.34572638,160.15,160.1,21.8612]
[1730780400308,12.04472638,160.14,160.1,21.8612]
[1730780401014,18.34572638,160.15,160.1,21.8612]
[1730780401317,27.28262638,160.16,160.11,12.04472638]
[1730780401520,27.28262638,160.16,160.12,21.8585]
[1730780402111,12.04472638,160.17,160.12,21.8585]
[1730780402315,12.04472638,160.17,160.12,33.90322638]
[1730780402529,12.04472638,160.18,160.13,12.04472638]
[1730780402808,18.10252638,160.19,160.13,12.04472638]
[1730780403014,6.0578,160.19,160.14,12.04472638]
[1730780403213,28.44262638,160.2,160.15,12.04472638]
[1730780403426,12.04472638,160.22,160.17,12.04472638]
[1730780404320,12.04472638,160.22,160.16,12.04472638]
[1730780404811,12.04472638,160.22,160.17,33.89642638]
[1730780405400,18.73509801,160.21,160.17,21.8517]
[1730780406813,18.73509801,160.21,160.17,15.6084]
[1730780407016,18.73509801,160.19,160.14,18.73509801]
[1730780407217,18.73509801,160.17,160.14,21.8552]
[1730780407801,18.73509801,160.16,160.14,15.6111]
[1730780408301,18.73509801,160.17,160.14,15.6111]
[1730780409098,18.73509801,160.15,160.1,40.59569801]
[1730780410903,18.73509801,160.13,160.1,15.6149]
[1730780411921,18.73509801,160.12,160.09,6.2462]
[1730780412458,18.73509801,160.12,160.07,21.8652]
[1730780412933,18.73509801,160.12,160.07,40.60029801]
[1730780413630,18.73509801,160.13,160.07,40.60029801]
[1730780414130,18.73509801,160.12,160.07,40.60029801]
[1730780414326,18.73509801,160.1,160.07,21.8652]
[1730780414519,18.73509801,160.13,160.08,18.73509801]
[1730780415110,18.73509801,160.14,160.09,18.73509801]
[1730780415306,24.97989801,160.16,160.1,18.73509801]
[1730780415827,24.97989801,160.16,160.11,6.2457]
[1730780416637,18.73509801,160.15,160.11,6.2457]
[1730780418331,18.73509801,160.15,160.1,21.8603]
[1730780420919,18.73509801,160.16,160.1,40.59539801]
[1730780421124,18.73509801,160.17,160.12,18.73509801]
[1730780422236,18.73509801,160.17,160.13,6.2449]
[1730780422733,18.73509801,160.16,160.13,6.2449]
[1730780422939,18.73509801,160.15,160.13,6.2449]
[1730780423945,18.73509801,160.16,160.12,15.6125]
[1730780427352,18.73509801,160.17,160.12,18.73509801]
[1730780428463,18.73509801,160.17,160.13,6.2449]
[1730780429460,18.73509801,160.17,160.12,21.8585]
[1730780430069,18.73509801,160.18,160.12,40.59359801]
[1730780431154,18.73509801,160.17,160.12,21.8585]
[1730780431443,18.73509801,160.17,160.12,40.59359801]
[1730780433342,11.99736222,160.17,160.11,11.99736222]
[1730780434776,11.99736222,160.18,160.12,33.85586222]
[1730780435670,18.24036222,160.18,160.12,33.85586222]
[1730780436058,11.99736222,160.18,160.12,33.85586222]
[1730780436258,18.23996222,160.19,160.13,11.99736222]
[1730780436760,11.99736222,160.19,160.13,11.99736222]
[1730780437463,11.99736222,160.18,160.13,11.99736222]
[1730780438156,11.99736222,160.16,160.12,15.6132]
[1730780438356,11.99736222,160.14,160.09,11.99736222]
[1730780438671,11.99736222,160.14,160.09,33.85956222]
[1730780438880,11.99736222,160.15,160.09,33.85956222]
[1730780439272,11.99736222,160.14,160.09,33.85956222]
[1730780439454,11.99736222,160.14,160.09,40.61506932]
[1730780439455,18.75286932,160.14,160.09,40.61506932]
[1730780440869,18.75286932,160.15,160.09,40.61506932]
[1730780442973,18.75286932,160.15,160.1,2.16669372]
[1730780443576,18.75286932,160.15,160.09,40.61506932]
[1730780446556,18.75286932,160.15,160.11,6.2457]
[1730780447679,18.75286932,160.15,160.1,21.8612]
[1730780450660,18.75286932,160.16,160.1,40.61406932]
[1730780451570,18.75286932,160.16,160.1,15.6152]
[1730780452178,18.75286932,160.16,160.11,2.16708112]
[1730780452895,18.75286932,160.16,160.11,5.72542225]
[1730780453182,24.99656932,160.16,160.11,2.16618138]
[1730780453361,24.99656932,160.16,160.11,3.55852733]
[1730780453880,24.99656932,160.16,160.11,9.80392733]
[1730780454275,24.99656932,160.16,160.11,6.2454]
[1730780455505,24.99656932,160.16,160.1,21.8612]
[1730780455705,18.75286932,160.16,160.11,5.72389636]
[1730780455879,18.75286932,160.16,160.1,25.32858008]
[1730780456201,18.75286932,160.16,160.11,5.72390428]
[1730780456392,18.75286932,160.16,160.1,25.32858008]
[1730780456707,31.779,160.21,160.1,25.32858008]
[1730780456708,18.75286932,160.19,160.12,18.75286932]
[1730780456880,18.75286932,160.18,160.12,18.75286932]
[1730780457199,18.75286932,160.15,160.1,40.61406932]
[1730780457381,18.75286932,160.15,160.11,5.72106188]
[1730780457578,18.75286932,160.15,160.11,21.8599]
[1730780459977,18.75286932,160.15,160.11,15.6142]
[1730780460299,18.75286932,160.12,160.08,21.8637]
[1730780460505,18.75286932,160.11,160.09,5.72078046]
[1730780460674,18.75286932,160.12,160.1,2.16512562]
[1730780460875,18.75286932,160.12,160.09,3.5558944]
[1730780461081,18.75286932,160.12,160.1,2.165094]
[1730780461296,12.00467958,160.12,160.09,3.55595801]
[1730780461604,12.00467958,160.13,160.09,6.2464]
[1730780462505,12.00467958,160.11,160.08,19.08149215]
[1730780462690,12.00467958,160.11,160.09,2.1646893]
[1730780462883,12.00467958,160.11,160.08,21.8637]
[1730780463073,12.00467958,160.09,160.05,15.6201]
[1730780463279,12.00467958,160.06,160.02,0.93733656]
[1730780463475,12.00467958,160.06,160.02,22.80913656]
[1730780463713,15.8716,160.11,160.04,12.00467958]
[1730780463714,12.00467958,160.09,160.04,12.00467958]
[1730780463910,12.3411,160.15,160.08,12.00467958]
[1730780464502,12.00467958,160.13,160.08,12.00467958]
[1730780465024,12.00467958,160.13,160.09,2.16316522]
[1730780465211,12.00467958,160.13,160.09,8.40926522]
[1730780465509,12.00467958,160.16,160.1,12.00467958]
[1730780465684,12.00467958,160.16,160.11,12.00467958]
[1730780466602,12.00467958,160.16,160.12,6.2453]
[1730780466801,12.00467958,160.16,160.12,21.8585]
[1730780467387,18.74782814,160.16,160.12,21.8585]
[1730780467792,18.74782814,160.15,160.09,18.74782814]
[1730780468008,18.74782814,160.15,160.1,5.71367195]
[1730780468190,18.74782814,160.15,160.1,3.55121321]
[1730780469004,18.74782814,160.15,160.11,6.2457]
[1730780470095,18.74782814,160.16,160.11,6.2457]
[1730780470515,18.74782814,160.16,160.11,24.99352814]
[1730780470897,18.74782814,160.16,160.11,6.2457]
[1730780472324,18.74782814,160.16,160.11,21.8599]
[1730780473120,18.74782814,160.18,160.13,18.74782814]
[1730780473327,18.74782814,160.19,160.14,18.74782814]
[1730780473500,18.74782814,160.19,160.13,18.74782814]
[1730780473817,18.74782814,160.18,160.13,18.74782814]
[1730780474703,18.74782814,160.19,160.14,21.8558]
[1730780475118,18.74782814,160.19,160.14,40.60362814]
[1730780476004,18.74782814,160.2,160.15,18.74782814]
[1730780476205,18.74782814,160.21,160.15,18.74782814]
[1730780477131,18.74782814,160.2,160.15,24.99152814]
[1730780477338,18.74782814,160.21,160.15,40.60182814]
[1730780478004,18.74782814,160.21,160.16,18.74782814]
[1730780478404,18.74782814,160.22,160.17,6.2433]
[1730780478627,18.74782814,160.21,160.17,6.2433]
[1730780480834,18.74782814,160.2,160.15,15.6103]
[1730780481040,18.74782814,160.19,160.15,21.8544]
[1730780481252,18.74782814,160.18,160.15,15.6103]
[1730780481743,6.2414,160.22,160.13,3.45221138]
[1730780481744,18.74782814,160.16,160.13,3.45204791]
[1730780481904,18.74782814,160.16,160.13,5.70053225]
[1730780482109,18.74782814,160.16,160.12,21.8584]
[1730780482520,18.74782814,160.15,160.1,22.1101]
[1730780482715,18.74782814,160.15,160.08,15.6163]
[1730780482716,18.74782814,160.12,160.08,15.6163]
[1730780482916,18.74782814,160.11,160.08,15.6163]
[1730780483132,18.74782814,160.13,160.08,40.61092814]
[1730780483305,6.2438,160.16,160.1,18.74782814]
[1730780483306,18.74782814,160.15,160.1,18.74782814]
[1730780483510,18.74782814,160.15,160.09,18.74782814]
[1730780483814,18.74782814,160.14,160.09,18.74782814]
[1730780484019,18.74782814,160.15,160.1,21.8612]
[1730780484633,18.74782814,160.16,160.1,40.60902814]
[1730780484939,18.74782814,160.18,160.13,18.74782814]
[1730780485244,18.74782814,160.21,160.15,18.74782814]
[1730780485541,18.74782814,160.21,160.16,18.74782814]
[1730780486528,18.74782814,160.21,160.17,6.2433]
[1730780488860,18.74782814,160.24,160.18,18.74782814]
[1730780489350,18.74782814,160.23,160.18,18.74782814]
[1730780489551,18.74782814,160.24,160.18,18.74782814]
[1730780489754,18.74782814,160.24,160.19,18.74782814]
[1730780489958,18.74782814,160.24,160.18,18.74782814]
[1730780490262,18.74782814,160.24,160.19,6.2425]
[1730780490623,18.74782814,160.25,160.2,18.74782814]
[1730780490953,18.74782814,160.25,160.19,40.59672814]
[1730780491124,18.74782814,160.24,160.19,40.59672814]
[1730780492444,18.74782814,160.24,160.19,21.8489]
[1730780493559,24.98852814,160.24,160.19,21.8489]
[1730780494251,18.74782814,160.24,160.19,21.8489]
[1730780494955,18.74782814,160.24,160.19,40.59672814]
[1730780495260,24.98802814,160.25,160.19,40.59672814]
[1730780497370,24.98802814,160.25,160.2,18.74782814]
[1730780497738,24.98802814,160.25,160.19,34.35422814]
[1730780498459,18.74782814,160.24,160.19,34.35422814]
[1730780498648,18.74782814,160.24,160.19,40.59672814]
[1730780499058,24.98802814,160.25,160.19,40.59672814]
[1730780499369,18.22632894,160.25,160.19,33.83502894]
[1730780499872,11.98612894,160.24,160.19,21.8489]
[1730780501050,11.98612894,160.23,160.19,21.8489]
[1730780504777,11.98612894,160.22,160.19,15.6064]
[1730780505883,11.98612894,160.23,160.19,21.8489]
[1730780506579,11.98612894,160.23,160.19,15.6064]
[1730780507160,11.98612894,160.21,160.17,6.2432]
[1730780507564,11.98612894,160.21,160.16,15.6091]
[1730780507764,11.98612894,160.22,160.17,11.98612894]
[1730780508881,11.98612894,160.23,160.18,33.83642894]
[1730780509383,11.98612894,160.21,160.18,15.6074]
[1730780512284,11.98612894,160.23,160.17,11.98612894]
[1730780512458,11.98612894,160.24,160.18,11.98612894]
[1730780512784,11.98612894,160.24,160.19,11.98612894]
[1730780513078,11.98612894,160.25,160.2,11.98612894]
[1730780513486,11.98612894,160.26,160.2,11.98612894]
[1730780513874,11.98612894,160.24,160.19,11.98612894]
[1730780516089,11.98612894,160.24,160.21,15.6045]
[1730780516398,6.2399,160.26,160.18,33.83572894]
[1730780516399,11.98612894,160.23,160.18,33.83572894]
[1730780517987,11.98612894,160.21,160.15,11.98612894]